Workbook

Sheet Sous Vide
A1: Adding Hysteresis to the plus input of a Comparator LM339/LM393 | M1: Temperature as a function of Time
A2: with 3 resistors Rx, Ry, R18 and one potentiometer P1 | I2: Temperature °C
A3: Values ​​in K Ohm | G3: Volt | I3: Max Delta is selected | O3: =+A26 -> Temperature with P1 0% = 0 Ω
A4: Rx=(R6 to R11) | B4: Ry=(R12 to R17) | C4: R18 | D4: P1 | E4: P1 i % | F4: R20 | G4: Vcc | I4: Selected temperature
A5: 130 | B5: 110 | C5: 1200 | D5: 2200 | E5: 0 | F5: 3.3 | G5: 12 | J5: =CONCATENATE(F11*10,N19) -> 57,2 °C | K5: "Turns off" on rising temperature
A7: R1 combined = 1/(1/Rx+1/(R20+R3 combined)) | D7: =+I26 -> S1 Off | F7: =1/(1/A5+1/(F5+F9)) -> 120.8958681 | G7: K Ohm | J7: =CONCATENATE(((F11+F13)/2)*10,N19) -> 55,2 °C | K7: Average temperature | O7: =CONCATENATE((F14*10),N19) -> 4 °C | Q7: Delta temp
A8: R2 combined = 1/(1/Ry+1/R3 combined) | C8: R18 | D8: R19 | E8: P1 | F8: =1/(1/B5+1/F9) -> 103.3987998 | G8: K Ohm
A9: R3 combined = R18+R19+P1 | C9: =+C5 -> 1200 | D9: 523 | E9: =D5*E5 -> 0 | F9: =SUM(C9:E9) -> 1723 | G9: K Ohm | J9: =CONCATENATE(F13*10,N19) -> 53,2 °C | S9: "Turns on" on falling temperature
A10: Calculating Reference Voltage Off
A11: V Reference Off = (Vcc/(R1 combined + R2)) * R2 | F11: =+ROUND(((G5/(F7+B5))*B5),2) -> 5.72 | G11: Volt
A12: Calculating Reference Voltage On
A13: V Reference On = (Vcc/(R1 + R2 combined)) * R2 Combined | F13: =+ROUND(((G5/(A5+F8))*F8),2) -> 5.32 | G13: Volt
A14: Hysteresis Shift Voltages = V Ref Off - V Ref On | F14: =+ROUND(F11-F13,2) -> 0.4 | G14: Volt | K14: The heating element status | V14: Time
K15: On | O15: Off | S15: On
A17: Temperature with P1 100% = 2.2M Ω | I17: Select Data | M17: Gain in LM324 | S17: Insert the values ​​in the yellow cells (remember in K Ohm)
A18: Switch Pos. No. | B18: Voff | C18: Von | D18: Hys. Shift Volt | E18: Max °C | F18: Min °C | G18: Hys. Shift Temp | I18: P1 = 100% | J18: P1 = 0% | M18: Resistors in K Ohm | S18: Also set PO trimmer - in the red cell - the same value as specified in P20
A19: 1. 45 °C | B19: 4.65 | C19: 4.46 | D19: =+B19-C19 -> 0.19 | E19: =+B19*10 -> 46.5 | F19: =C19*10 -> 44.6 | G19: =E19-F19 -> 1.9 | M19: R4 | N19: °C | O19: R3 | P19: PO trim | Q19: PO i % | S19: Make a What-if analysis targeting: Enter cell O23 to value 10 by changing P21
A20: 2. 50 °C | B20: 5.12 | C20: 4.92 | D20: =+B20-C20 -> 0.2 | E20: =+B20*10 -> 51.2 | F20: =C20*10 -> 49.2 | G20: =E20-F20 -> 2 | M20: 91 | O20: 10 | P20: 0.2 | Q20: =+P21/P20 -> 0.55 | S20: The result in % of setting PO trimmer can be seen in green cell Q20
A21: 3. 55 °C | B21: 5.61 | C21: 5.41 | D21: 0.2 | E21: 56.1 | F21: 54.1 | G21: 2 | M21: PO trimmer actual value | P21: 0.11 | Q21: K Ohm | S21: The result of Ohm setting of PO trimmer can be seen in red cell P21
A22: 4. 60 °C | B22: 6.11 | C22: 5.89 | D22: 0.22 | E22: 61.1 | F22: 58.9 | G22: 2.2 | M22: P0 is a trimmer in serie with R3 | S22: Please note:
A23: 5. 65 °C | B23: 6.56 | C23: 6.34 | D23: 0.22 | E23: 65.6 | F23: 63.4 | G23: 2.2 | M23: Av = (1+R4/(R3+PO)) = | O23: =1+M20/(O20+P21) -> 10.00098912 | P23: =20*LOG10(O23) -> 20.0008591 | Q23: dB | S23: I don't use P0 in this diagram, but I place a 110 Ohm resistor in series with R3
A24: 6. 70 °C | B24: 7.11 | C24: 6.88 | D24: 0.23 | E24: 71.1 | F24: 68.8 | G24: 2.3 | S24: R3 in the diagram consists of two resistors - 10k ohms and 110 ohms in series
A26: Temperature with P1 0% = 0 Ω | I26: =+K28 -> S1 Off
A27: Switch Pos. No. | B27: Voff | C27: Von | D27: Hys. Shift Volt | E27: Max °C | F27: Min °C | G27: Hys. Shift Temp | K27: Insert R19
A28: 1. 45 °C | B28: 4.87 | C28: 4.33 | D28: =+B28-C28 -> 0.54 | E28: =+B28*10 -> 48.7 | F28: =C28*10 -> 43.3 | G28: =E28-F28 -> 5.4 | K28: S1 Off
A29: 2. 50 °C | B29: 5.32 | C29: 4.77 | D29: =+B29-C29 -> 0.55 | E29: =+B29*10 -> 53.2 | F29: =C29*10 -> 47.7 | G29: =E29-F29 -> 5.5
A30: 3. 55 °C | B30: 5.81 | C30: 5.24 | D30: 0.57 | E30: 58.1 | F30: 52.4 | G30: 5.7 | K30: Remove R19
A31: 4. 60 °C | B31: 6.29 | C31: 5.71 | D31: 0.58 | E31: 62.9 | F31: 57.1 | G31: 5.8 | K31: S1 On
A32: 5. 65 °C | B32: 6.74 | C32: 6.13 | D32: 0.61 | E32: 67.4 | F32: 61.3 | G32: 6.1
A33: 6. 70 °C | B33: 7.28 | C33: 6.65 | D33: 0.63 | E33: 72.8 | F33: 66.5 | G33: 6.3
J60: The spreadsheet is not protected by Password
J62: Udarbejdet af Jørgen Walter ©
J66: www.walter-lystfisker.dk
J68: COPYRIGHT © 2014
A70: walter | Y70: Reg.No.1277
